bitfinex/quotes_SOLUSD_20260228
["timestamp","ask_amount","ask_price","bid_price","bid_amount"]
[1772267676219,14.56653739,78.34,78.303,0.5]
[1772267676411,14.56653739,78.37,78.33,14.56653739]
[1772267676616,14.56653739,78.37,78.331,0.5]
[1772267677724,14.56653739,78.37,78.332,12.76617474]
[1772267677725,14.56653739,78.36,78.332,12.76617474]
[1772267678333,27.32667327,78.37,78.333,0.5]
[1772267678835,8.04913476,78.375,78.351,0.5]
[1772267679634,8.04913476,78.375,78.353,0.5]
[1772267679815,8.04913476,78.375,78.36,14.56653739]
[1772267680010,20.80837901,78.375,78.346,12.76387675]
[1772267680633,20.80837901,78.375,78.35,14.56653739]
[1772267680838,20.80837901,78.375,78.35,15.06653739]
[1772267681616,20.80837901,78.375,78.35,27.82975337]
[1772267681819,2.45594605,78.375,78.361,0.5]
[1772267682232,2.45594605,78.375,78.343,0.5]
[1772267682233,12.75933345,78.374,78.343,0.5]
[1772267682441,14.56653739,78.36,78.331,12.76633772]
[1772267683021,14.56653739,78.37,78.332,0.5]
[1772267683729,12.7601475,78.369,78.334,0.5]
[1772267684632,12.7601475,78.369,78.336,0.5]
[1772267687023,12.7601475,78.369,78.338,0.5]
[1772267688338,12.7601475,78.369,78.339,12.76503401]
[1772267688544,12.7601475,78.369,78.34,0.5]
[1772267689138,15.21517272,78.375,78.341,0.5]
[1772267689643,14.53880887,78.37,78.339,12.76503401]
[1772267690645,14.53880887,78.36,78.327,0.5]
[1772267692039,14.53880887,78.36,78.33,14.53880887]
[1772267692241,2.45594605,78.375,78.351,0.5]
[1772267692429,12.75933345,78.374,78.351,0.5]
[1772267693235,14.53880887,78.37,78.351,0.5]
[1772267693435,14.53880887,78.37,78.349,12.76334337]
[1772267694036,14.53880887,78.37,78.344,13.26410547]
[1772267695059,14.53880887,78.37,78.345,0.5]
[1772267697658,27.29886425,78.37,78.345,0.5]
[1772267700457,12.76005538,78.37,78.345,0.5]
[1772267701265,14.53880887,78.36,78.331,0.5]
[1772267701462,14.53880887,78.36,78.31,63.8487253]
[1772267701463,14.53880887,78.35,78.312,0.5]
[1772267701961,14.53880887,78.33,78.304,0.5]
[1772267702167,14.53880887,78.33,78.306,0.5]
[1772267703863,14.53880887,78.33,78.275,63.87703755]
[1772267703864,14.53880887,78.32,78.291,0.5]
[1772267704164,14.53880887,78.33,78.292,0.5]
[1772267704945,27.30544259,78.33,78.292,0.5]
[1772267706142,27.30544259,78.33,78.294,0.5]
[1772267707155,14.53880887,78.32,78.294,0.5]
[1772267707863,14.53880887,78.35,78.311,0.5]
[1772267708164,14.53880887,78.35,78.263,63.42765221]
[1772267708165,12.7601475,78.369,78.333,0.5]
[1772267708370,14.53880887,78.36,78.333,0.5]
[1772267708541,12.7601475,78.369,78.333,0.5]
[1772267710345,12.7601475,78.369,78.335,0.5]
[1772267711138,14.53880887,78.37,78.335,0.5]
[1772267711342,63.57584024,78.423,78.334,44.6804708]
[1772267711343,14.53880887,78.38,78.341,0.5]
[1772267711739,14.53880887,78.39,78.351,0.5]
[1772267712368,14.53880887,78.39,78.353,0.5]
[1772267712545,32.08813395,78.4,78.381,0.5]
[1772267712546,0.2,78.4,78.381,0.5]
[1772267713058,0.2,78.4,78.391,0.5]
[1772267713059,1e-08,78.4,78.391,0.5]
[1772267714347,1e-08,78.4,78.392,12.75640371]
[1772267714548,1e-08,78.4,78.393,0.5]
[1772267714744,1e-08,78.41,78.393,0.5]
[1772267714974,1e-08,78.41,78.401,0.5]
[1772267715149,1e-08,78.41,78.393,0.5]
[1772267716166,1e-08,78.41,78.401,0.5]
[1772267716471,1e-08,78.41,78.403,0.5]
[1772267717572,1e-08,78.41,78.396,0.5]
[1772267718077,14.53880888,78.41,78.38,0.5]
[1772267718369,14.53880888,78.41,78.382,0.5]
[1772267719765,14.53880888,78.41,78.383,12.75786841]
[1772267720455,14.53880888,78.41,78.384,0.5]
[1772267721566,12.75363797,78.409,78.384,0.5]
[1772267721981,12.75363797,78.409,78.374,0.5]
[1772267722879,14.53880887,78.4,78.374,0.5]
[1772267723175,12.75363797,78.409,78.374,0.5]
[1772267724580,1e-08,78.41,78.381,0.5]
[1772267724872,1e-08,78.41,78.401,0.5]
[1772267725454,14.53880887,78.44,78.401,0.5]
[1772267726376,14.73880887,78.45,78.411,0.5]
[1772267726589,12.74713508,78.449,78.413,0.5]
[1772267727086,14.73880887,78.45,78.413,0.5]
[1772267727385,0.2,78.45,78.421,0.5]
[1772267727881,8.12144024,78.459,78.412,44.63602509]
[1772267727882,8.12144024,78.459,78.431,0.5]
[1772267728396,8.12144024,78.459,78.423,0.5]
[1772267728691,14.53880887,78.45,78.424,13.25119861]
[1772267728860,12.74713508,78.449,78.425,0.5]
[1772267729365,8.12144024,78.459,78.425,0.5]
[1772267729769,14.53880887,78.45,78.425,0.5]
[1772267730170,8.12144024,78.459,78.425,0.5]
[1772267730369,12.74567284,78.458,78.425,0.5]
[1772267730589,14.53880887,78.43,78.4,0.5]
[1772267730795,14.53880887,78.44,78.401,0.5]
[1772267731091,14.53880887,78.44,78.358,5.36086188]
[1772267731092,14.53880887,78.45,78.411,0.5]
[1772267731386,14.53880887,78.45,78.421,0.5]
[1772267731590,15.02519348,78.44,78.4,14.53880887]
[1772267732167,15.02519348,78.44,78.359,63.27026358]
[1772267732168,15.02519348,78.44,78.41,14.53880887]
[1772267732369,0.48638461,78.44,78.41,14.53880887]
[1772267733067,0.48638461,78.44,78.411,12.75331267]
[1772267733274,14.53880887,78.45,78.42,14.53880887]
[1772267733685,14.53880887,78.45,78.421,0.47727869]
[1772267734095,8.12144024,78.459,78.431,0.47727869]
[1772267735166,8.12144024,78.459,78.432,12.749898]
[1772267735482,8.12144024,78.459,78.433,0.47727869]
[1772267738765,0.48638461,78.458,78.433,0.47727869]
[1772267739391,20.86708471,78.459,78.433,0.47727869]
[1772267740095,0.48638461,78.439,78.407,0.47727869]
[1772267740390,0.48638461,78.439,78.411,0.47727869]
[1772267742074,13.21576472,78.438,78.411,13.23049987]
[1772267742586,0.46684201,78.438,78.411,13.23049987]
[1772267742784,0.46684201,78.438,78.412,0.47972659]
[1772267744894,0.46684201,78.438,78.413,12.75298738]
[1772267746984,0.46684201,78.438,78.414,0.47972659]
[1772267747997,12.74908525,78.437,78.414,0.47972659]
[1772267748581,0.46684201,78.438,78.414,0.47972659]
[1772267748981,12.74908525,78.437,78.407,0.47972659]
[1772267749202,13.21592726,78.437,78.409,0.47972659]
[1772267749399,0.46684201,78.437,78.409,0.47972659]
[1772267749897,0.46684201,78.449,78.409,0.47972659]
[1772267750394,8.58828225,78.459,78.421,0.47972659]
[1772267750610,0.2,78.46,78.431,0.47972659]
[1772267751104,0.2,78.46,78.433,0.47972659]
[1772267751400,0.46684201,78.458,78.433,0.47972659]
[1772267751698,0.46684201,78.449,78.412,0.47972659]
[1772267752685,0.46684201,78.449,78.411,12.75331267]
[1772267752686,0.46684201,78.449,78.421,0.47972659]
[1772267753291,0.46684201,78.458,78.423,0.47972659]
[1772267754505,6.69732863,78.46,78.423,0.47972659]
[1772267755207,0.2,78.46,78.43,6.49732863]
[1772267755404,0.2,78.46,78.431,0.47972659]
[1772267755583,12.74551039,78.459,78.431,0.47972659]
[1772267755789,0.46684201,78.458,78.431,0.47972659]
[1772267757607,0.46684201,78.458,78.433,0.47972659]
[1772267759497,0.46684201,78.458,78.434,12.74957288]
[1772267760410,0.46684201,78.458,78.435,0.47972659]
[1772267761817,0.46684201,78.449,78.42,12.75170892]
[1772267762112,6.96417064,78.44,78.42,12.75170892]
[1772267762303,0.46684201,78.44,78.42,12.75170892]
[1772267762494,0.46684201,78.446,78.421,0.47972659]
[1772267764016,6.96417064,78.45,78.423,0.47972659]
[1772267764520,13.21397709,78.449,78.423,0.47972659]
[1772267764818,0.46684201,78.448,78.423,0.47972659]
[1772267765112,6.49732863,78.45,78.423,0.47972659]
[1772267766019,0.46684201,78.449,78.419,0.47972659]
[1772267766206,0.46684201,78.439,78.412,0.47972659]
[1772267767215,6.49732863,78.43,78.412,0.47972659]
[1772267767609,6.49732863,78.43,78.413,12.75298738]
[1772267769010,0.46684201,78.439,78.413,12.75298738]
[1772267769515,6.49732863,78.43,78.413,12.75298738]
[1772267769818,0.46684201,78.437,78.414,0.47972659]
[1772267770326,0.46273493,78.445,78.414,0.47972659]
[1772267771416,6.49732863,78.44,78.414,0.47972659]
[1772267771595,6.96006356,78.44,78.415,13.21530904]
[1772267771791,0.46273493,78.439,78.416,0.46264693]
[1772267772208,0.46273493,78.438,78.411,12.75322263]
[1772267773016,0.46273493,78.438,78.412,0.46264693]
[1772267774507,0.46273493,78.438,78.411,12.75322263]
[1772267774508,0.46273493,78.438,78.414,0.46264693]
[1772267778312,6.49732863,78.44,78.416,0.46264693]
[1772267779423,6.69732863,78.46,78.421,0.46264693]
[1772267780200,6.69732863,78.46,78.42,6.49732863]
[1772267780201,6.69732863,78.46,78.423,0.46264693]
[1772267780424,0.46273493,78.458,78.423,0.46264693]
[1772267782522,0.46273493,78.458,78.425,0.46264693]
[1772267784327,0.46273493,78.458,78.427,0.46264693]
[1772267785402,0.46273493,78.458,78.429,0.46264693]
[1772267786222,0.46273493,78.456,78.412,0.46264693]
[1772267786412,6.49732863,78.44,78.412,0.46264693]
[1772267786613,0.46273493,78.446,78.412,0.46264693]
[1772267787730,0.46273493,78.446,78.414,0.46264693]
[1772267788523,0.46273493,78.444,78.414,0.46264693]
[1772267789631,0.46273493,78.444,78.416,0.46264693]
[1772267791930,0.46273493,78.444,78.418,0.46264693]
[1772267792833,0.46273493,78.439,78.418,0.46264693]
[1772267794417,0.46273493,78.439,78.419,12.75201162]
[1772267795443,0.46273493,78.439,78.42,0.46264693]
[1772267796819,0.46273493,78.445,78.422,0.46264693]
[1772267797438,0.46273493,78.445,78.417,0.46264693]
[1772267798715,0.46273493,78.445,78.419,0.46264693]
[1772267798937,13.20860379,78.457,78.421,0.46264693]
[1772267799414,0.46273493,78.449,78.421,0.46264693]
[1772267800634,0.45761735,78.439,78.411,0.45109499]
[1772267800843,0.45761735,78.448,78.413,0.45109499]
[1772267802930,0.4891263,78.446,78.415,0.49547446]
[1772267804326,12.74746006,78.447,78.379,63.79215356]
[1772267804327,0.4891263,78.429,78.402,0.49547446]
[1772267804638,0.4891263,78.419,78.401,12.75485159]
[1772267804941,0.4891263,78.419,78.39,31.89169439]
[1772267804942,0.4891263,78.419,78.397,12.75559013]
[1772267805139,0.4891263,78.419,78.398,0.49547446]
[1772267806339,6.49732863,78.42,78.398,0.49547446]
[1772267807042,6.49732863,78.42,78.4,0.49547446]
[1772267808235,6.49732863,78.42,78.401,12.75493935]
[1772267808737,0.4891263,78.419,78.401,12.75493935]
[1772267808941,0.4891263,78.419,78.401,13.25041381]
[1772267809144,6.49732863,78.42,78.402,0.49547446]
[1772267809344,6.50372449,78.42,78.402,0.49547446]
[1772267809533,6.99285079,78.42,78.402,0.49547446]
[1772267809946,0.4891263,78.419,78.402,0.49547446]
[1772267811738,0.4891263,78.417,78.382,0.49547446]
[1772267813041,0.4891263,78.417,78.381,44.65367882]
[1772267813042,0.4891263,78.415,78.384,0.49547446]
[1772267816050,0.4891263,78.415,78.386,0.49547446]
[1772267817246,0.4891263,78.441,78.401,0.49547446]
[1772267817429,0.4891263,78.441,78.4,6.50372449]
[1772267817430,0.4891263,78.447,78.411,0.49547446]
[1772267817635,12.74835047,78.442,78.411,0.49547446]
[1772267818232,12.74762256,78.446,78.412,12.75315002]
[1772267818438,12.74762256,78.446,78.413,0.49547446]
[1772267819145,0.4891263,78.445,78.413,0.49547446]
[1772267819344,6.50372449,78.44,78.415,0.49547446]
[1772267819555,0.4891263,78.439,78.415,0.49547446]
[1772267819859,0.4891263,78.439,78.41,0.49547446]
[1772267820762,0.4891263,78.419,78.393,0.49547446]
[1772267821443,0.4891263,78.419,78.368,63.80128091]
[1772267821444,0.4891263,78.399,78.361,0.49547446]
[1772267821638,6.50372449,78.38,78.362,0.49547446]
[1772267821842,6.50372449,78.38,78.36,12.76153604]
[1772267822042,6.50372449,78.4,78.34,0.1]
[1772267822043,0.4891263,78.369,78.34,0.1]
[1772267822261,6.50372449,78.36,78.34,0.1]
[1772267822849,6.50372449,78.36,78.325,31.91827928]
[1772267822850,0.4,78.349,78.313,0.49547446]
[1772267823145,6.50372449,78.35,78.313,0.49547446]
[1772267823344,12.76340476,78.349,78.314,12.76910897]
[1772267823543,12.76340476,78.349,78.31,6.60372449]
[1772267823544,6.50372449,78.34,78.315,0.49547446]
[1772267823749,6.50372449,78.35,78.315,0.49547446]
[1772267824555,6.50372449,78.35,78.321,0.49547446]
[1772267824950,1.27297723,78.397,78.341,0.49547446]
[1772267825147,0.4,78.403,78.38,6.50372449]
[1772267825469,0.4,78.399,78.37,12.75985191]
[1772267825849,0.4,78.389,78.361,12.76145021]
[1772267826058,12.75477666,78.402,78.362,0.49547446]
[1772267826059,0.4,78.399,78.362,0.49547446]
[1772267826864,0.4,78.399,78.371,0.49547446]
[1772267827166,64.0369845,78.46,78.361,44.66507573]
[1772267827167,0.4,78.419,78.381,0.49547446]
[1772267827545,6.50372449,78.41,78.383,0.49547446]
[1772267828343,0.4,78.418,78.383,0.49547446]
[1772267829451,0.4,78.425,78.391,0.49547446]
[1772267829649,0.4,78.423,78.391,0.49547446]
[1772267830166,0.4,78.409,78.381,0.49547446]
[1772267830670,0.4,78.409,78.383,0.46239558]
[1772267832261,0.4,78.409,78.384,12.75770565]
[1772267832764,0.4,78.409,78.385,0.46239558]
[1772267833857,0.4,78.408,78.379,12.75838709]
[1772267834056,0.4,78.408,78.374,13.22160387]
[1772267834369,12.75396329,78.407,78.375,0.46239558]
[1772267834566,0.4,78.406,78.375,0.46239558]
[1772267837872,0.4,78.406,78.374,12.75920829]
[1772267837873,0.4,78.406,78.377,0.46239558]
[1772267838370,0.4,78.404,78.377,0.46239558]
[1772267839572,6.50372449,78.41,78.379,0.46239558]
[1772267839768,0.4,78.409,78.379,0.46239558]
[1772267840556,0.4,78.399,78.365,12.76078034]
[1772267840756,6.50372449,78.39,78.361,0.46239558]
[1772267840962,6.50372449,78.4,78.361,0.46239558]
[1772267841167,31.88054114,78.418,78.36,19.26533469]
[1772267841168,12.75235269,78.417,78.381,0.46239558]
[1772267841458,0.4,78.409,78.381,0.46239558]
[1772267841660,0.4,78.419,78.381,0.46239558]
[1772267842786,0.4,78.418,78.383,0.46239558]
[1772267842960,12.75133623,78.424,78.391,0.46239558]
[1772267844562,12.75133623,78.424,78.393,0.46239558]
[1772267845474,0.4,78.425,78.393,0.46239558]
[1772267845673,0.4,78.425,78.392,12.75640371]
[1772267845674,0.4,78.459,78.411,0.46239558]
[1772267845861,0.4,78.449,78.424,0.46239558]
[1772267846060,6.50372449,78.45,78.424,0.46239558]
[1772267846665,6.50372449,78.45,78.42,6.50372449]
[1772267846666,6.50372449,78.45,78.426,0.46239558]
[1772267847377,0.4,78.439,78.402,0.46239558]
[1772267847558,6.50372449,78.43,78.402,0.46239558]
[1772267848465,6.50372449,78.44,78.411,0.46239558]
[1772267848663,12.74713508,78.449,78.413,0.46239558]
[1772267848863,6.50372449,78.44,78.413,0.46239558]
[1772267849778,6.50372449,78.44,78.415,0.46239558]
[1772267850479,12.74700126,78.45,78.415,0.46239558]
[1772267850676,19.25072575,78.45,78.415,0.46239558]
[1772267851280,12.74619608,78.455,78.421,0.46239558]
[1772267851463,12.74551039,78.459,78.421,0.46239558]
[1772267851783,0.4,78.458,78.423,0.46239558]
[1772267851975,12.74583529,78.457,78.423,0.46239558]
[1772267853264,6.50372449,78.45,78.423,0.46239558]
[1772267854884,6.50372449,78.45,78.425,0.46239558]
[1772267856490,6.50372449,78.44,78.42,0.46239558]
[1772267856782,0.4,78.449,78.42,0.46239558]
[1772267856986,12.74729757,78.448,78.422,0.46239558]
[1772267858879,12.74729757,78.448,78.423,12.7513612]
[1772267859085,12.74729757,78.448,78.424,0.46239558]
[1772267859387,12.74596956,78.457,78.424,0.46239558]
[1772267859573,6.70372449,78.46,78.423,12.7513612]
[1772267859574,0.2,78.46,78.431,0.46239558]
[1772267860591,0.2,78.46,78.425,0.48771615]
[1772267860592,6.50372449,78.45,78.425,0.48771615]
[1772267861175,6.50372449,78.45,78.427,0.48771615]
[1772267863087,6.50372449,78.45,78.429,0.48394475]
[1772267863802,19.4490907,78.46,78.429,0.48394475]
[1772267865392,19.4490907,78.46,78.431,0.48394475]
[1772267865895,6.70372449,78.46,78.431,0.48394475]
[1772267866900,12.74551039,78.459,78.431,0.48394475]
[1772267867788,12.74551039,78.459,78.407,63.76901218]
[1772267867789,6.50372449,78.45,78.419,0.48394475]
[1772267867994,0.4,78.449,78.419,0.48394475]
[1772267869502,0.4,78.483,78.442,0.48394475]
[1772267869683,0.4,78.469,78.442,0.48394475]
[1772267869884,0.4,78.467,78.442,0.48394475]
[1772267870185,0.4,78.467,78.443,13.23205484]
[1772267870392,0.4,78.459,78.43,0.48394475]
[1772267871196,0.4,78.449,78.42,0.48394475]
[1772267871781,0.4,78.449,78.397,63.77740301]
[1772267871782,6.5007201,78.43,78.405,0.48394475]
[1772267871984,0.4,78.429,78.405,0.48394475]
[1772267872201,0.4,78.429,78.405,13.23812519]
[1772267873084,6.5007201,78.43,78.406,0.48394475]
[1772267874102,6.5007201,78.43,78.407,13.23790804]
[1772267874398,6.5007201,78.43,78.408,0.48394475]
[1772267875397,6.5007201,78.43,78.407,12.75396329]
[1772267875398,0.4,78.429,78.394,0.48394475]
[1772267875809,0.4,78.429,78.395,0.48394475]
[1772267876306,0.4,78.429,78.39,6.5007201]
[1772267876307,19.25105168,78.43,78.397,0.48394475]
[1772267876703,19.65105168,78.43,78.397,0.48394475]
[1772267877707,0.4,78.43,78.399,0.48394475]
[1772267877903,6.5007201,78.44,78.401,0.48394475]
[1772267879009,6.5007201,78.44,78.398,44.64399601]
[1772267879010,6.5007201,78.45,78.411,0.48394475]
[1772267879504,12.74713508,78.449,78.411,0.48394475]
[1772267879910,12.74713508,78.449,78.413,0.48394475]
[1772267880218,0.4,78.448,78.413,0.48394475]
[1772267880511,6.5007201,78.44,78.413,0.48394475]
[1772267880813,12.74560723,78.459,78.421,0.48394475]
[1772267881112,0.2,78.48,78.441,0.48394475]
[1772267881423,0.2,78.48,78.44,6.5007201]
[1772267881424,0.2,78.48,78.461,0.48394475]
[1772267881590,0.2,78.48,78.44,6.5007201]
[1772267881591,0.4,78.477,78.441,0.48394475]
[1772267881996,0.4,78.477,78.443,0.48394475]
[1772267882193,7.1007201,78.48,78.443,0.48394475]
[1772267882511,0.4,78.469,78.443,0.48394475]
[1772267884092,12.74404852,78.468,78.443,0.48394475]
[1772267884291,0.4,78.459,78.422,0.48394475]
[1772267884709,6.5007201,78.45,78.422,0.48394475]
[1772267885614,0.4,78.439,78.414,0.48394475]
[1772267886118,12.74892271,78.438,78.414,0.48394475]
[1772267886614,12.74892271,78.438,78.4,6.5007201]
[1772267886615,6.5007201,78.43,78.4,12.75496779]
[1772267886797,0.4,78.429,78.4,13.23891254]
[1772267887201,0.4,78.429,78.401,0.48394475]
[1772267888117,0.4,78.429,78.403,0.48394475]
[1772267889121,19.25102616,78.43,78.403,0.48394475]
[1772267891125,6.5007201,78.42,78.396,0.48005194]
[1772267891427,12.749335,78.436,78.401,0.48005194]
[1772267892530,12.749335,78.436,78.403,0.48005194]
[1772267893325,6.5007201,78.43,78.403,0.48005194]
[1772267894307,6.5007201,78.43,78.405,0.48005194]
[1772267896310,0.4,78.465,78.411,0.48005194]
[1772267896509,0.4,78.465,78.406,12.75412595]
[1772267896510,6.5007201,78.46,78.421,0.48005194]
[1772267898306,12.74551039,78.459,78.423,0.48005194]
[1772267898508,6.5007201,78.45,78.423,0.48005194]
[1772267899011,19.24616339,78.46,78.423,0.48005194]
[1772267899520,31.85945271,78.47,78.431,0.48005194]
[1772267899521,6.5007201,78.47,78.431,0.48005194]
[1772267900904,6.5007201,78.47,78.43,6.5007201]
[1772267900905,6.5007201,78.47,78.433,0.48005194]
[1772267901104,6.5007201,78.47,78.432,44.624643]
[1772267901105,0.2,78.48,78.451,0.48005194]
[1772267901903,6.7007201,78.48,78.451,0.48005194]
[1772267902207,0.2,78.48,78.451,0.48005194]
[1772267902805,0.2,78.48,78.453,0.48005194]
[1772267903720,1e-08,78.48,78.461,0.48005194]
[1772267904831,8.2655034,78.499,78.463,0.48005194]
[1772267905120,0.2,78.51,78.481,0.48005194]
[1772267905702,6.5007201,78.52,78.482,0.48005194]
[1772267905903,12.73272951,78.538,78.501,0.48005194]
[1772267906104,6.7007201,78.54,78.501,0.48005194]
[1772267906425,7.1007201,78.53,78.501,0.48005194]
[1772267906715,6.7007201,78.53,78.503,0.48005194]
[1772267906921,0.2,78.53,78.503,0.48005194]
[1772267907226,0.2,78.54,78.511,0.48005194]
[1772267907714,0.46050912,78.538,78.504,0.48005194]
[1772267909411,14.47255014,78.53,78.506,0.48005194]
[1772267911312,12.73285203,78.537,78.485,18.76905642]
[1772267911313,0.46050912,78.519,78.488,12.74064919]
[1772267911629,0.46050912,78.518,78.489,0.48005194]
[1772267912628,14.47255014,78.52,78.489,0.48005194]
[1772267912827,0.46050912,78.519,78.489,0.48005194]
[1772267913031,14.47255014,78.51,78.489,0.48005194]
[1772267913212,14.47255014,78.51,78.49,0.48005194]
[1772267913907,0.46050912,78.513,78.49,14.95260208]
[1772267914114,13.19731617,78.513,78.49,14.95260208]
[1772267914317,13.19731617,78.513,78.485,18.76905642]
[1772267914318,0.46050912,78.509,78.485,18.76905642]
[1772267915827,14.47255014,78.5,78.485,15.71544011]
[1772267918111,12.73901578,78.499,78.464,12.74456304]
[1772267918313,14.47255014,78.49,78.456,0.5]
[1772267918513,1.27297723,78.526,78.471,0.5]
[1772267918514,14.47255014,78.51,78.471,0.5]
[1772267918735,14.47255014,78.52,78.491,0.5]
[1772267919543,14.47255014,78.5,78.463,0.5]
[1772267919915,5.36086188,78.519,78.45,14.47255014]
[1772267920137,12.74226226,78.479,78.45,14.97255014]
[1772267920359,0.45582299,78.478,78.44,14.47255014]
[1772267920625,0.45582299,78.469,78.43,35.42282112]
[1772267920829,0.45582299,78.469,78.43,22.67273934]
[1772267921028,0.45582299,78.461,78.43,35.4229207]
[1772267922237,13.20115321,78.461,78.43,35.4229207]
[1772267922536,0.4896913,78.464,78.431,0.491869]
[1772267923334,0.4896913,78.464,78.432,12.749898]
[1772267923634,0.4896913,78.464,78.432,13.241767]
[1772267923827,14.47255014,78.47,78.43,22.67273934]
[1772267923828,0.4896913,78.462,78.43,22.67273934]
[1772267924035,0.4896913,78.459,78.43,8.2001892]
[1772267924236,0.4896913,78.459,78.43,22.67273934]
[1772267924620,0.4896913,78.459,78.43,8.2001892]
[1772267924839,14.47255014,78.45,78.43,7.7001892]
[1772267925131,14.47255014,78.45,78.411,12.75320431]
[1772267925340,14.47255014,78.45,78.411,13.25320431]
[1772267925637,12.74713508,78.449,78.411,12.75320431]
[1772267925836,14.47255014,78.44,78.4,27.22760968]
[1772267926030,14.47255014,78.44,78.401,0.5]
[1772267926937,12.74876018,78.439,78.402,12.75477666]
[1772267927238,44.62066063,78.439,78.403,0.5]
[1772267927837,12.74876018,78.439,78.403,0.5]
[1772267928523,44.62066063,78.439,78.4,14.47255014]
[1772267928727,44.62066063,78.439,78.401,0.5]
[1772267929416,44.62066063,78.439,78.4,14.47255014]
[1772267929945,12.74266039,78.477,78.43,14.47255014]
[1772267930120,44.59912789,78.477,78.44,14.47255014]
[1772267930818,44.59912789,78.477,78.44,14.97255014]
[1772267931225,44.59912789,78.477,78.44,14.99952623]
[1772267932430,14.49952623,78.47,78.432,0.5]
[1772267932942,14.49952623,78.47,78.44,14.49952623]
[1772267933647,44.60360142,78.469,78.432,0.5]
[1772267934429,14.49952623,78.46,78.423,0.5]
[1772267934640,14.49952623,78.46,78.424,12.75119861]
[1772267935247,14.49952623,78.46,78.424,13.25119861]
[1772267935650,12.74551039,78.459,78.424,13.25119861]
[1772267935943,14.49952623,78.45,78.42,14.49952623]
[1772267936133,14.49952623,78.45,78.412,0.5]
[1772267936332,14.49952623,78.45,78.421,0.5]
[1772267937445,14.49952623,78.44,78.406,0.5]
[1772267937644,12.74876018,78.439,78.406,0.5]
[1772267938347,12.74876018,78.439,78.41,14.49952623]
[1772267939352,44.62066063,78.439,78.406,0.5]
[1772267939650,44.62066063,78.439,78.402,0.5]
[1772267941235,14.49952623,78.43,78.394,0.5]
[1772267941842,14.49952623,78.42,78.38,14.99952623]
[1772267942134,12.75363797,78.409,78.38,14.99952623]
[1772267944341,31.88062075,78.418,78.38,14.49952623]
[1772267944657,31.88062075,78.418,78.384,0.5]
[1772267945054,31.88062075,78.418,78.38,14.49952623]
[1772267945258,14.49952623,78.41,78.377,0.5]
[1772267945955,12.74908525,78.437,78.401,0.5]
[1772267946147,12.74908525,78.437,78.41,14.49952623]
[1772267946343,12.74908525,78.437,78.411,0.5]
[1772267946548,63.87740827,78.494,78.35,19.86038811]
[1772267946549,12.74583529,78.457,78.421,0.5]
[1772267946739,0.4896913,78.449,78.361,0.28432314]
[1772267946933,0.4896913,78.449,78.42,14.49952623]
[1772267948471,0.4896913,78.447,78.42,14.49952623]
[1772267949040,0.4896913,78.447,78.42,14.99139523]
[1772267949240,0.4896913,78.439,78.401,0.491869]
[1772267949740,14.49952623,78.44,78.386,63.78643521]
[1772267949741,0.4896913,78.447,78.411,0.491869]
[1772267950742,12.74762256,78.446,78.411,0.491869]
[1772267950941,0.47045935,78.445,78.411,0.491869]
[1772267951345,0.47045935,78.445,78.413,0.45591646]
[1772267952266,12.74762256,78.446,78.421,0.45591646]
[1772267953063,0.47045935,78.449,78.411,0.45591646]
[1772267954361,0.47045935,78.447,78.413,0.45591646]
[1772267955443,0.47045935,78.445,78.415,0.45591646]
[1772267956658,0.47045935,78.445,78.411,0.45591646]
[1772267958158,0.47045935,78.443,78.412,0.45591646]
[1772267959967,0.47045935,78.441,78.403,0.45591646]
[1772267960272,0.47045935,78.439,78.401,0.45591646]
[1772267961267,0.47045935,78.437,78.403,0.45591646]
[1772267964670,13.21970714,78.436,78.405,0.45591646]
[1772267965554,0.47045935,78.435,78.405,0.45591646]
[1772267966368,12.74843512,78.441,78.42,14.49952623]
[1772267966569,0.47045935,78.448,78.421,0.45591646]
[1772267966764,13.21826465,78.445,78.421,0.45591646]
[1772267966966,0.47045935,78.444,78.414,0.45591646]
[1772267967153,0.47045935,78.439,78.414,0.45591646]
[1772267968173,0.47045935,78.439,78.415,0.45591646]
[1772267968872,14.49952623,78.45,78.383,0.45591646]
[1772267968873,0.47045935,78.429,78.383,0.45591646]
[1772267969058,0.47045935,78.419,78.383,0.45591646]
[1772267970877,0.47045935,78.417,78.385,0.45591646]
[1772267972659,12.75217424,78.418,78.39,14.49952623]
[1772267972972,14.49952623,78.43,78.384,12.75770565]
[1772267972973,12.75022312,78.43,78.401,0.45591646]
[1772267973170,12.75022312,78.43,78.403,0.45591646]
[1772267974879,12.74924779,78.436,78.405,0.45591646]